[Event "White Rook U14 Final 2019"]
[Site "Sochi"]
[Date "2019.06.07"]
[Round "6.17"]
[White "Mongush, Kezhik"]
[Black "Naumov, Igor"]
[Result "1/2-1/2"]
[ECO "D37"]
[WhiteElo "1824"]
[BlackElo "1800"]
[Annotator "NA"]
[PlyCount "59"]
[EventDate "2019.06.02"]
[EventCountry "RUS"]
[SourceTitle "playchess.com"]
[Source "ChessBase"]
[SourceQuality "1"]
[TimeControl "5400+30"]

1. d4 {[%emt 0:16:34]} d5 {[%emt 0:06:21]} 2. c4 {[%emt 0:00:27]} e6 {[%emt 0:00:55]} 3. Nc3 {[%emt 0:00:08]} Be7 {[%emt 0:00:19]} 4. Nf3 {[%emt 0:00:35]} Nf6 {[%emt 0:01:38]} 5. e3 {[%emt 0:01:41]} O-O {[%emt 0:00:04]} 6. Bd3 {[%emt 0:06:02]} dxc4 {[%emt 0:01:48]} 7. Bxc4 {[%emt 0:00:52]} Nbd7 {[%emt 0:00:03]} 8. O-O {[%emt 0:00:13]} Nb6 {[%emt 0:02:52] D37: Queen's Gambit Declined: 5 Bf4} (8... c5 9. Qe2 a6 10. a4 Qc7 11. Rd1 Rd8 12. a5 b5 13. axb6 Nxb6 14. Bd3 Bb7 15. h3 cxd4 16. exd4 Nbd5 17. Nxd5 Nxd5 18. Ne5 Bf6 19. Bd2 Bxe5 20. dxe5 {½-½ (116) Melkumyan,H (2633)-Vajda,L (2597) Sydney 2014}) 9. Bd3 {[%emt 0:01:11]} Nbd5 {[%emt 0:03:24]} 10. e4 {[%emt 0:08:20]} Nxc3 {[%emt 0:02:52]} 11. bxc3 {[%emt 0:02:37]} c5 {[%emt 0:04:56]} 12. Qe2 {[%emt 0:01:26]} cxd4 $146 {[%emt 0:00:01]} ({Predecessor:} 12... Qa5 13. Rb1 Rd8 14. Bf4 cxd4 15. cxd4 a6 16. Rfc1 {1-0 (32) Scheide,H (1924)-Keusch,H (2042) Rowy 2002}) 13. cxd4 {[%emt 0:03:35]} g6 {[%emt 0:06:40]} 14. h3 {[%emt 0:02:17]} b6 {[%emt 0:01:30]} 15. a4 {[%emt 0:28:59]} Bb7 {[%emt 0:03:15]} 16. Bh6 {[%emt 0:00:56]} Re8 {[%emt 0:00:17]} 17. Bb5 {[%emt 0:22:37]} Nxe4 {[%emt 1:01:35]} 18. Bxe8 {[%emt 0:00:30]} Qxe8 {[%emt 0:00:30]} 19. Rfc1 {[%emt 0:00:30]} Rc8 {[%emt 0:00:30]} 20. Rxc8 {[%emt 0:00:30]} Qxc8 {[%emt 0:00:30]} 21. Rc1 {[%emt 0:00:30]} Qd8 {[%emt 0:00:30]} 22. Bf4 {[%emt 0:00:30]} Nf6 {[%emt 0:00:30]} 23. Qe5 {[%emt 0:00:30]} Nd5 {[%emt 0:00:30]} 24. Bg5 {[%emt 0:00:30]} Ba6 {[%emt 0:00:30]} 25. Bxe7 {[%emt 0:00:30]} Qxe7 {[%emt 0:00:30]} 26. Ng5 {[%emt 0:00:30]} Bb7 {[%emt 0:00:30]} 27. Ne4 {[%emt 0:00:30]} Qa3 {[%emt 0:00:30]} 28. Re1 {[%emt 0:00:30]} Qb4 {[%emt 0:00:30]} 29. Nd6 $18 {[%emt 0:00:30]} Bc6 {[%emt 0:00:30]} 30. Re2 {[%emt 0:00:30]} 1/2-1/2

[Event "White Rook U14 Final 2019"]
[Site "Sochi"]
[Date "2019.06.07"]
[Round "6.18"]
[White "Nasedkin, Arseny"]
[Black "Fomkin, Dmitry"]
[Result "0-1"]
[ECO "B33"]
[WhiteElo "1559"]
[BlackElo "1733"]
[Annotator "NA"]
[PlyCount "31"]
[EventDate "2019.06.02"]
[EventCountry "RUS"]
[SourceTitle "playchess.com"]
[Source "ChessBase"]
[SourceQuality "1"]
[TimeControl "5400+30"]

1. e4 {[%emt 0:52:47]} c5 {[%emt 0:35:36]} 2. Nf3 {[%emt 0:38:13]} d6 {[%emt 0:55:24]} 3. d4 {[%emt 0:00:30]} cxd4 {[%emt 0:00:30]} 4. Nxd4 {[%emt 0:00:30]} Nf6 {[%emt 0:00:30]} 5. Nc3 {[%emt 0:00:30]} Nc6 {[%emt 0:00:30]} 6. f3 {[%emt 0:00:30]} e5 {[%emt 0:00:30]} 7. Ndb5 {[%emt 0:00:30]} a6 {[%emt 0:00:30]} 8. Na3 {[%emt 0:00:30]} b5 {[%emt 0:00:30]} 9. Nd5 {[%emt 0:00:30]} Nxd5 {[%emt 0:00:30]} 10. exd5 {[%emt 0:00:30]} Nd4 {[%emt 0:00:30]} 11. c3 {[%emt 0:00:30]} Nf5 {[%emt 0:00:30]} 12. Qc2 {[%emt 0:00:30]} Qh4+ {[%emt 0:00:30]} 13. Qf2 {[%emt 0:00:30]} Qxf2+ {[%emt 0:00:30]} 14. Kxf2 {[%emt 0:00:30]} Bb7 {[%emt 0:00:30]} 15. c4 {[%emt 0:00:30]} bxc4 {[%emt 0:00:30]} 16. Nxc4 {[%emt 0:00:30]} 0-1

[Event "White Rook U14 Final 2019"]
[Site "Sochi"]
[Date "2019.06.07"]
[Round "6.19"]
[White "Ponomarev, Andrey A."]
[Black "Noskov, Alexander"]
[Result "1/2-1/2"]
[ECO "B38"]
[WhiteElo "1919"]
[BlackElo "1782"]
[Annotator "NA"]
[PlyCount "117"]
[EventDate "2019.06.02"]
[EventCountry "RUS"]
[SourceTitle "playchess.com"]
[Source "ChessBase"]
[SourceQuality "1"]
[TimeControl "5400+30"]

1. e4 {[%emt 0:00:00]} c5 {[%emt 0:39:45]} 2. Nf3 {[%emt 0:00:39]} Nc6 {[%emt 0:00:08]} 3. d4 {[%emt 0:00:34]} cxd4 {[%emt 0:04:30]} 4. Nxd4 {[%emt 0:02:33]} g6 {[%emt 0:05:36]} 5. c4 {[%emt 0:00:37]} Bg7 {[%emt 0:01:10]} 6. Be3 {[%emt 0:00:42]} Nf6 {[%emt 0:01:06]} 7. Nc3 {[%emt 0:00:09]} d6 {[%emt 0:00:06]} 8. Be2 {[%emt 0:03:19]} Bd7 {[%emt 0:00:09]} 9. O-O {[%emt 0:00:17]} O-O {[%emt 0:01:12]} 10. Qd2 {[%emt 0:01:08]} a6 {[%emt 0:14:59]} 11. b3 {[%emt 0:00:57] B38: Sicilian: Maroczy Bind with 5...Bg7 and 7...0-0} (11. f3 Rc8 12. Rac1 h5 13. Rfd1 Kh7 14. Nxc6 Bxc6 15. b4 Bd7 16. c5 Be6 17. Nd5 dxc5 18. bxc5 Bxd5 19. exd5 e6 20. dxe6 Qxd2 21. Rxd2 fxe6 {½-½ (60) Cheparinov,I (2696)-Mamedyarov,S (2731) Elista 2008}) 11... Rc8 {[%emt 0:08:32]} 12. Rac1 {[%emt 0:00:01]} Ng4 {[%emt 0:00:45]} 13. Bxg4 {[%emt 0:00:06]} Bxg4 {[%emt 0:00:10]} 14. f3 {[%emt 0:03:06]} Bd7 {[%emt 0:01:09]} 15. Rfd1 {[%emt 0:00:22]} Ne5 {[%emt 0:00:28]} 16. h3 {[%emt 0:00:32]} Rb8 $146 {[%emt 0:00:27]} ({Predecessor:} 16... Bc6 17. f4 Nd7 18. e5 Nc5 19. Nxc6 Rxc6 20. Bxc5 Rxc5 21. exd6 exd6 22. Qxd6 Qxd6 23. Rxd6 Bxc3 24. Rxc3 {1-0 (35) Hess,C (2305)-Lange,C (2065) Nuremberg 2004}) 17. f4 {[%emt 0:07:31]} Nc6 {[%emt 0:00:55]} 18. Nf3 {[%emt 0:00:13]} Rc8 {[%emt 0:00:19]} 19. e5 {[%emt 0:00:14]} Bf5 {[%emt 0:01:55]} 20. exd6 {[%emt 0:00:43]} exd6 {[%emt 0:02:03]} 21. Qxd6 {[%emt 0:02:33]} Qxd6 {[%emt 0:01:21]} 22. Rxd6 {[%emt 0:03:02]} Rcd8 {[%emt 0:00:46]} 23. Rxd8 {[%emt 0:04:54]} Rxd8 {[%emt 0:00:49]} 24. Nd5 {[%emt 0:00:32]} Be4 {[%emt 0:03:33]} 25. Rd1 {[%emt 0:00:41]} Bxd5 {[%emt 0:00:30]} 26. Rxd5 {[%emt 0:00:08]} Rxd5 {[%emt 0:01:43]} 27. cxd5 {[%emt 0:00:30]} Nb4 {[%emt 0:00:50]} 28. d6 {[%emt 0:00:43]} Bf6 {[%emt 0:01:57]} 29. a3 {[%emt 0:00:00]} Nd5 {[%emt 0:00:12]} 30. Bd2 {[%emt 0:00:00]} Bd8 {[%emt 0:00:45]} 31. Kf1 {[%emt 0:00:41]} Nf6 {[%emt 0:00:39]} 32. a4 {[%emt 0:00:23]} Ne4 {[%emt 0:00:00]} 33. Bb4 {[%emt 0:03:26]} a5 {[%emt 0:00:55]} 34. Ba3 {[%emt 0:02:41]} f6 {[%emt 0:02:06]} 35. Ke2 {[%emt 0:07:31]} Kf7 {[%emt 0:00:16]} 36. Ke3 {[%emt 0:00:32]} Ng3 {[%emt 0:00:31]} 37. Nd2 {[%emt 0:00:27]} Ke6 {[%emt 0:00:39]} 38. Nc4 {[%emt 0:00:05]} Nf5+ {[%emt 0:01:40]} 39. Kd3 {[%emt 0:00:16]} Nh4 {[%emt 0:00:37]} (39... h5 $16) 40. g3 {[%emt 0:00:00]} (40. g4 $18) 40... Nf5 {[%emt 0:00:00]} 41. g4 {[%emt 0:00:00]} Nh4 $2 {[%emt 0:00:00]} (41... Ng3 $16 {might work better.} 42. Nd2 f5) 42. Bc1 {[%emt 0:00:33]} Nf3 {[%emt 0:00:58]} 43. Ke4 {[%emt 0:00:00]} Ng1 {[%emt 0:00:54]} 44. f5+ {[%emt 0:04:40]} gxf5+ {[%emt 0:04:55]} 45. gxf5+ {[%emt 0:54:29]} Kd7 {[%emt 0:00:30]} 46. h4 {[%emt 0:00:30]} Ne2 {[%emt 0:00:30]} 47. Bd2 {[%emt 0:00:30]} b6 $18 {[%emt 0:00:30]} 48. Be3 {[%emt 0:00:30]} Kc6 {[%emt 0:00:30]} 49. Bd2 {[%emt 0:00:30]} Kc5 {[%emt 0:00:30]} 50. Be3+ {[%emt 0:00:30]} Kc6 {[%emt 0:00:30]} 51. Kd3 {[%emt 0:00:30]} Ng3 {[%emt 0:00:30]} 52. d7 {[%emt 0:00:30]} Nxf5 {[%emt 0:00:30]} 53. Bxb6 {[%emt 0:00:30]} Kxd7 {[%emt 0:00:30]} 54. Bxd8 {[%emt 0:00:30]} Kxd8 {[%emt 0:00:30]} 55. Nxa5 {[%emt 0:00:30]} Nxh4 {[%emt 0:00:30]} 56. Nc6+ {[%emt 0:00:30]} Kc7 {[%emt 0:00:30]} 57. Nd4 {[%emt 0:00:30]} Kb6 {[%emt 0:00:30]} 58. b4 {[%emt 0:00:30]} Ng6 {[%emt 0:00:30]} 59. Ke4 {[%emt 0:00:30]} 1/2-1/2

[Event "White Rook U14 Final 2019"]
[Site "Sochi"]
[Date "2019.06.07"]
[Round "6.20"]
[White "Suslenkova, Elvira"]
[Black "Namay, Viktoria"]
[Result "0-1"]
[ECO "A07"]
[WhiteElo "1359"]
[BlackElo "1359"]
[Annotator "NA"]
[PlyCount "40"]
[EventDate "2019.06.02"]
[EventCountry "RUS"]
[SourceTitle "playchess.com"]
[Source "ChessBase"]
[SourceQuality "1"]
[TimeControl "5400+30"]

1. Nf3 {[%emt 0:31:19]} d5 {[%emt 0:34:01]} 2. g3 {[%emt 0:00:05]} Nf6 {[%emt 0:00:02]} 3. Bg2 {[%emt 0:00:03]} c6 {[%emt 0:00:04]} 4. O-O {[%emt 1:00:33]} Bg4 {[%emt 0:57:53]} 5. d3 {[%emt 0:00:30]} Nbd7 {[%emt 0:00:30]} 6. Nbd2 {[%emt 0:00:30]} e5 {[%emt 0:00:30]} 7. c4 {[%emt 0:00:30]} Bd6 {[%emt 0:00:30]} 8. b3 {[%emt 0:00:30]} O-O {[%emt 0:00:30]} 9. Bb2 {[%emt 0:00:30]} Re8 {[%emt 0:00:30]} 10. Re1 {[%emt 0:00:30]} e4 {[%emt 0:00:30]} 11. dxe4 {[%emt 0:00:30]} dxe4 {[%emt 0:00:30]} 12. Nd4 {[%emt 0:00:30]} e3 {[%emt 0:00:30]} 13. N2f3 {[%emt 0:00:30]} exf2+ {[%emt 0:00:30]} 14. Kxf2 {[%emt 0:00:30]} Qe7 {[%emt 0:00:30]} 15. Qd3 {[%emt 0:00:30]} Bb4 {[%emt 0:00:30]} 16. Red1 {[%emt 0:00:30]} Nc5 {[%emt 0:00:30]} 17. Qc2 {[%emt 0:00:30]} Qe3+ {[%emt 0:00:30]} 18. Kf1 {[%emt 0:00:30]} Nfe4 {[%emt 0:00:30]} 19. Qxe4 {[%emt 0:00:30]} Nxe4 {[%emt 0:00:30]} 20. Bh3 {[%emt 0:00:30]} Qf2# {[%emt 0:00:30]} 0-1

[Event "White Rook U14 Final 2019"]
[Site "Sochi"]
[Date "2019.06.07"]
[Round "6.21"]
[White "Voloshkin, Daniil"]
[Black "Deminov, Ilya"]
[Result "0-1"]
[ECO "B25"]
[WhiteElo "1557"]
[BlackElo "1562"]
[Annotator "NA"]
[PlyCount "122"]
[EventDate "2019.06.02"]
[EventCountry "RUS"]
[SourceTitle "playchess.com"]
[Source "ChessBase"]
[SourceQuality "1"]
[TimeControl "5400+30"]

1. e4 {[%emt 0:22:07]} c5 {[%emt 0:04:54]} 2. Nc3 {[%emt 0:01:55]} Nc6 {[%emt 0:08:54]} 3. g3 {[%emt 0:12:24]} g6 {[%emt 0:00:39]} 4. Bg2 {[%emt 0:00:00]} Bg7 {[%emt 0:00:06]} 5. d3 {[%emt 0:00:04]} d6 {[%emt 0:01:38]} 6. f4 {[%emt 0:00:06]} e6 {[%emt 0:00:13]} 7. Nf3 {[%emt 0:28:14]} Nge7 {[%emt 0:01:01]} 8. Be3 {[%emt 0:06:41]} Rb8 {[%emt 0:00:51]} 9. O-O {[%emt 0:04:24]} O-O {[%emt 0:03:54]} 10. Qd2 {[%emt 0:05:39]} Nd4 {[%emt 0:01:07]} 11. Nd1 {[%emt 0:00:23]} b5 {[%emt 0:00:00]} 12. c3 {[%emt 0:00:06]} Nxf3+ {[%emt 0:00:16]} 13. Bxf3 {[%emt 0:02:07]} Bb7 {[%emt 0:00:35]} 14. d4 {[%emt 0:00:23]} cxd4 {[%emt 0:03:26]} 15. cxd4 {[%emt 0:01:35]} f5 {[%emt 0:00:38]} 16. e5 {[%emt 0:02:32]} Bxf3 {[%emt 0:01:56]} 17. Rxf3 {[%emt 0:00:36]} dxe5 {[%emt 0:01:32]} 18. dxe5 {[%emt 0:00:00]} Qxd2 {[%emt 0:00:10]} 19. Bxd2 {[%emt 0:01:10]} Nd5 {[%emt 0:01:09]} 20. Nc3 {[%emt 0:01:02]} Rfd8 {[%emt 0:00:44]} 21. a3 {[%emt 0:01:53]} Bf8 {[%emt 0:01:04]} 22. Kf2 {[%emt 0:00:43]} Nb4 {[%emt 0:00:01]} 23. Be3 {[%emt 0:01:39]} Nc2 {[%emt 0:00:30]} 24. Rc1 {[%emt 0:01:08]} Nxe3 {[%emt 0:00:21]} 25. Kxe3 {[%emt 0:00:57]} b4 {[%emt 0:00:05]} 26. axb4 {[%emt 0:00:56]} Rxb4 {[%emt 0:01:13]} 27. Rc2 {[%emt 0:01:01]} h6 {[%emt 0:00:10]} 28. Rf1 {[%emt 0:00:30]} g5 {[%emt 0:00:42]} 29. Rd1 {[%emt 0:00:55]} gxf4+ {[%emt 0:00:10]} 30. gxf4 {[%emt 0:00:41]} Bc5+ {[%emt 0:00:06]} 31. Kf3 {[%emt 0:00:12]} Rdd4 {[%emt 0:00:11]} 32. Rxd4 {[%emt 0:00:25]} Bxd4 {[%emt 0:01:10]} 33. Rd2 {[%emt 0:00:12]} Bb6 {[%emt 0:00:13]} 34. Na2 {[%emt 0:00:50]} Rb3+ {[%emt 0:00:08]} 35. Nc3 {[%emt 0:00:26]} Kf8 {[%emt 0:01:32]} 36. Ke2 {[%emt 0:00:25]} Ke7 {[%emt 0:00:22]} 37. Kd1 {[%emt 0:00:51]} Rb4 {[%emt 0:00:20]} 38. Ne2 {[%emt 0:00:23]} Be3 {[%emt 0:00:06]} 39. Rc2 {[%emt 0:01:52]} Kd7 {[%emt 0:00:08]} 40. Rc3 {[%emt 0:00:03]} Bxf4 {[%emt 0:00:07]} 41. Rd3+ {[%emt 0:00:56]} Ke7 {[%emt 0:00:11]} 42. Nxf4 {[%emt 0:00:53]} Rxf4 {[%emt 0:00:12]} 43. Ra3 {[%emt 0:00:12]} Rd4+ {[%emt 0:00:12]} 44. Kc2 {[%emt 0:00:32]} Rh4 {[%emt 0:00:09]} 45. Rxa7+ {[%emt 0:00:09]} Kd8 {[%emt 0:00:07]} 46. h3 {[%emt 0:00:25]} Rxh3 {[%emt 0:00:03]} 47. b4 {[%emt 0:00:06]} h5 {[%emt 0:00:04]} 48. Ra6 {[%emt 0:01:05]} Kd7 {[%emt 0:00:06]} 49. b5 {[%emt 0:00:47]} Re3 {[%emt 0:00:11]} 50. Ra7+ {[%emt 0:02:25]} Kc8 {[%emt 1:11:23]} 51. Rh7 {[%emt 0:00:30]} Rxe5 {[%emt 0:00:30]} 52. Rxh5 {[%emt 0:00:30]} Rxb5 {[%emt 0:00:30]} 53. Kd3 {[%emt 0:00:30]} Kd7 {[%emt 0:00:30]} 54. Rh7+ {[%emt 0:00:30]} Kd6 {[%emt 0:00:30]} 55. Ra7 {[%emt 0:00:30]} Ke5 {[%emt 0:00:30]} 56. Ra4 {[%emt 0:00:30]} Rb3+ {[%emt 0:00:30]} 57. Ke2 {[%emt 0:00:30]} f4 {[%emt 0:00:30]} 58. Ra5+ {[%emt 0:00:30]} Ke4 {[%emt 0:00:30]} 59. Ra4+ {[%emt 0:00:30]} Kf5 {[%emt 0:00:30]} 60. Ra5+ {[%emt 0:00:30]} e5 {[%emt 0:00:30]} 61. Rc5 {[%emt 0:00:30]} Rb4 {[%emt 0:00:30]} 0-1

[Event "White Rook U14 Final 2019"]
[Site "Sochi"]
[Date "2019.06.07"]
[Round "6.24"]
[White "Deminova, Maria"]
[Black "Golikova, Alisa"]
[Result "0-1"]
[ECO "B34"]
[WhiteElo "1737"]
[BlackElo "1252"]
[Annotator "NA"]
[PlyCount "21"]
[EventDate "2019.06.02"]
[EventCountry "RUS"]
[SourceTitle "playchess.com"]
[Source "ChessBase"]
[SourceQuality "1"]
[TimeControl "5400+30"]

1. e4 {[%emt 0:17:51]} c5 {[%emt 1:30:30]} 2. Nf3 {[%emt 1:13:09]} Nc6 {[%emt 0:00:30]} 3. d4 {[%emt 0:00:30]} cxd4 {[%emt 0:00:30]} 4. Nxd4 {[%emt 0:00:30]} g6 {[%emt 0:00:30]} 5. Nc3 {[%emt 0:00:30]} Bg7 {[%emt 0:00:30]} 6. Be3 {[%emt 0:00:30]} Nf6 {[%emt 0:00:30]} 7. Be2 {[%emt 0:00:30]} Qa5 {[%emt 0:00:30]} 8. O-O {[%emt 0:00:30]} O-O {[%emt 0:00:30]} 9. f4 {[%emt 0:00:30]} d6 {[%emt 0:00:30]} 10. Bf3 {[%emt 0:00:30]} Bd7 {[%emt 0:00:30]} 11. g4 {[%emt 0:00:30]} 0-1

[Event "White Rook U14 Final 2019"]
[Site "Sochi"]
[Date "2019.06.07"]
[Round "6.25"]
[White "Bobokulov, Bakhrom"]
[Black "Morozov, Gennady"]
[Result "1/2-1/2"]
[ECO "C01"]
[WhiteElo "1512"]
[BlackElo "1997"]
[Annotator "NA"]
[PlyCount "91"]
[EventDate "2019.06.02"]
[EventCountry "RUS"]
[SourceTitle "playchess.com"]
[Source "ChessBase"]
[SourceQuality "1"]
[TimeControl "5400+30"]

1. e4 {[%emt 0:13:42]} e6 {[%emt 0:07:59]} 2. d4 {[%emt 0:00:23]} d5 {[%emt 0:03:33]} 3. exd5 {[%emt 0:01:54]} exd5 {[%emt 0:00:21]} 4. c3 {[%emt 0:00:36]} Bd6 {[%emt 0:00:06]} 5. Bd3 {[%emt 0:00:15]} Ne7 {[%emt 0:00:10]} 6. Nf3 {[%emt 0:00:08]} O-O {[%emt 0:00:10]} 7. Bg5 {[%emt 0:01:12]} f6 {[%emt 0:00:18]} 8. Bh4 {[%emt 0:00:13]} Bf5 {[%emt 0:00:31]} 9. Bg3 {[%emt 0:00:49]} Bxd3 {[%emt 0:00:28]} 10. Qxd3 {[%emt 0:01:01]} Ng6 {[%emt 0:02:07]} 11. O-O {[%emt 0:01:33]} Nf4 {[%emt 0:03:14]} 12. Bxf4 {[%emt 0:00:00]} Bxf4 {[%emt 0:00:42]} 13. Qf5 {[%emt 0:00:28]} Qd6 {[%emt 0:00:14]} 14. Na3 {[%emt 0:00:10]} c6 {[%emt 0:00:03]} 15. Rfe1 {[%emt 0:03:07]} Na6 {[%emt 0:01:03]} 16. g3 {[%emt 0:00:07]} Bh6 {[%emt 0:00:03]} 17. Qe6+ {[%emt 0:00:03]} Qxe6 {[%emt 0:00:54]} 18. Rxe6 {[%emt 0:00:17]} Rfe8 {[%emt 0:00:21]} 19. Rxe8+ {[%emt 0:00:26]} Rxe8 {[%emt 0:03:13]} 20. Re1 {[%emt 0:00:00]} Re4 {[%emt 0:02:00]} 21. Nc2 {[%emt 0:00:10]} Kf7 {[%emt 0:07:14]} 22. Kg2 {[%emt 0:02:32]} g6 {[%emt 0:06:56]} 23. Ng1 {[%emt 0:05:22]} c5 {[%emt 0:08:11]} 24. f3 {[%emt 0:00:32]} Rxe1 {[%emt 0:00:05]} 25. Nxe1 {[%emt 0:04:26]} cxd4 {[%emt 0:02:07]} 26. cxd4 {[%emt 0:00:16]} Nb4 {[%emt 0:16:45]} 27. a3 {[%emt 0:00:30]} Bd2 {[%emt 0:00:30]} 28. axb4 {[%emt 0:00:00]} Bxe1 {[%emt 0:00:00]} 29. b5 {[%emt 0:01:00]} Bd2 {[%emt 0:01:00]} 30. Kf2 {[%emt 0:00:30]} Ke6 {[%emt 0:00:30]} 31. Ke2 {[%emt 0:00:00]} Bc1 {[%emt 0:00:30]} 32. b3 {[%emt 0:01:00]} Kd6 {[%emt 0:00:00]} 33. Kd3 {[%emt 0:00:30]} h5 {[%emt 0:01:00]} 34. f4 {[%emt 0:00:30]} Ke6 {[%emt 0:00:30]} 35. b4 {[%emt 0:00:30]} Ba3 {[%emt 0:00:30]} 36. Kc3 {[%emt 0:00:30]} Bc1 {[%emt 0:00:30]} 37. Kd3 {[%emt 0:00:30]} Ba3 {[%emt 0:34:42]} 38. Kc3 {[%emt 1:03:48]} Kf5 {[%emt 0:00:30]} 39. Ne2 {[%emt 0:00:30]} Ke4 {[%emt 0:00:30]} 40. Kb3 {[%emt 0:00:30]} Kd3 {[%emt 0:00:30]} 41. Nc3 {[%emt 0:00:30]} Kxd4 {[%emt 0:00:30]} 42. Na2 {[%emt 0:00:30]} Kd3 {[%emt 0:00:30]} 43. Nc3 {[%emt 0:00:30]} a6 {[%emt 0:00:30]} 44. b6 {[%emt 0:00:30]} Kd4 {[%emt 0:00:30]} 45. b5 {[%emt 0:00:30]} Kd3 {[%emt 0:00:30]} 46. Ne2 {[%emt 0:00:30]} 1/2-1/2

[Event "White Rook U14 Final 2019"]
[Site "Sochi"]
[Date "2019.06.07"]
[Round "6.26"]
[White "Ermakov, Maksim"]
[Black "Kholmamatov, Islombek"]
[Result "1-0"]
[ECO "D35"]
[WhiteElo "1623"]
[BlackElo "1608"]
[Annotator "NA"]
[PlyCount "32"]
[EventDate "2019.06.02"]
[EventCountry "RUS"]
[SourceTitle "playchess.com"]
[Source "ChessBase"]
[SourceQuality "1"]
[TimeControl "5400+30"]

1. d4 {[%emt 0:20:45]} d5 {[%emt 0:05:28]} 2. c4 {[%emt 0:02:18]} e6 {[%emt 0:00:28]} 3. Nc3 {[%emt 1:08:27]} Nf6 {[%emt 1:25:34]} 4. cxd5 {[%emt 0:00:30]} exd5 {[%emt 0:00:30]} 5. Bg5 {[%emt 0:00:30]} c6 {[%emt 0:00:30]} 6. e3 {[%emt 0:00:30]} Bf5 {[%emt 0:00:30]} 7. Qb3 {[%emt 0:00:30]} b6 {[%emt 0:00:30]} 8. Nf3 {[%emt 0:00:30]} Bd6 {[%emt 0:00:30]} 9. Be2 {[%emt 0:00:30]} Nbd7 {[%emt 0:00:30]} 10. O-O {[%emt 0:00:30]} h6 {[%emt 0:00:30]} 11. Bh4 {[%emt 0:00:30]} O-O {[%emt 0:00:30]} 12. Rac1 {[%emt 0:00:30]} b5 {[%emt 0:00:30]} 13. Bg3 {[%emt 0:00:30]} Bxg3 {[%emt 0:00:30]} 14. hxg3 {[%emt 0:00:30]} Rc8 {[%emt 0:00:30]} 15. Nd2 {[%emt 0:00:30]} a5 {[%emt 0:00:30]} 16. Rfe1 {[%emt 0:00:30]} Re8 {[%emt 0:00:30]} 1-0

[Event "White Rook U14 Final 2019"]
[Site "Sochi"]
[Date "2019.06.07"]
[Round "6.28"]
[White "Korovina, Yana"]
[Black "Aktamova, Zilola"]
[Result "1-0"]
[ECO "C47"]
[WhiteElo "1672"]
[BlackElo "1385"]
[Annotator "NA"]
[PlyCount "43"]
[EventDate "2019.06.02"]
[EventCountry "RUS"]
[SourceTitle "playchess.com"]
[Source "ChessBase"]
[SourceQuality "1"]
[TimeControl "5400+30"]

1. e4 {[%emt 0:00:00]} e5 {[%emt 0:00:00]} 2. Nc3 {[%emt 0:00:00]} Nc6 {[%emt 0:00:00]} 3. Nf3 {[%emt 0:00:00]} Nf6 {[%emt 0:00:00]} 4. Be2 {[%emt 0:00:00]} Bc5 {[%emt 0:00:00]} 5. Nxe5 {[%emt 0:00:00]} Nxe5 {[%emt 0:00:00]} 6. d4 {[%emt 0:00:00]} Bxd4 {[%emt 0:00:00]} 7. Qxd4 {[%emt 0:00:00]} Nc6 {[%emt 0:00:00]} 8. Qd1 {[%emt 0:00:00]} d6 {[%emt 0:00:00]} 9. O-O {[%emt 0:00:00]} O-O {[%emt 0:00:00]} 10. Bg5 {[%emt 0:00:00]} h6 {[%emt 1:35:00]} 11. Bh4 {[%emt 1:35:30]} Re8 {[%emt 0:00:30]} 12. f3 {[%emt 0:00:30]} Be6 {[%emt 0:00:30]} 13. f4 {[%emt 0:00:30]} Kh8 {[%emt 0:00:30]} 14. f5 {[%emt 0:00:30]} Bd7 {[%emt 0:00:30]} 15. Nd5 {[%emt 0:00:30]} Rxe4 {[%emt 0:00:30]} 16. Bxf6 {[%emt 0:00:30]} gxf6 {[%emt 0:00:30]} 17. Bd3 {[%emt 0:00:30]} Re5 {[%emt 0:00:30]} 18. Qh5 {[%emt 0:00:30]} Kg7 {[%emt 0:00:30]} 19. Nf4 {[%emt 0:00:30]} Ne7 {[%emt 0:00:30]} 20. Qg4+ {[%emt 0:00:30]} Kh7 {[%emt 0:00:30]} 21. Nh5 {[%emt 0:00:30]} Ng6 {[%emt 0:00:30]} 22. fxg6+ {[%emt 0:00:30]} 1-0

[Event "White Rook U14 Final 2019"]
[Site "Sochi"]
[Date "2019.06.07"]
[Round "6.30"]
[White "Seregin, Ignat"]
[Black "Springis, Jevgenijs"]
[Result "0-1"]
[ECO "B07"]
[WhiteElo "1687"]
[BlackElo "1632"]
[Annotator "NA"]
[PlyCount "21"]
[EventDate "2019.06.02"]
[EventCountry "RUS"]
[SourceTitle "playchess.com"]
[Source "ChessBase"]
[SourceQuality "1"]
[TimeControl "5400+30"]

1. e4 {[%emt 1:30:00]} d6 {[%emt 1:30:00]} 2. d4 {[%emt 0:00:09]} Nf6 {[%emt 0:00:16]} 3. Nc3 {[%emt 0:00:24]} g6 {[%emt 0:00:08]} 4. Be3 {[%emt 0:00:08]} Bg7 {[%emt 0:00:26]} 5. Qd2 {[%emt 0:00:24]} O-O {[%emt 0:00:16]} 6. Bh6 {[%emt 0:00:18]} e5 {[%emt 0:01:24]} 7. Bxg7 {[%emt 0:01:37]} Kxg7 {[%emt 0:00:09]} 8. dxe5 {[%emt 0:00:30]} dxe5 {[%emt 0:00:51]} 9. O-O-O {[%emt 0:00:17]} Qxd2+ {[%emt 0:00:30]} 10. Rxd2 {[%emt 0:00:43]} Be6 {[%emt 0:00:30]} 11. Nf3 {[%emt 0:00:17]} 0-1

[Event "White Rook U14 Final 2019"]
[Site "Sochi"]
[Date "2019.06.07"]
[Round "6.31"]
[White "Sergejevs, Germans"]
[Black "Mugenov, Vadim"]
[Result "0-1"]
[ECO "B50"]
[WhiteElo "1111"]
[BlackElo "1329"]
[Annotator "NA"]
[PlyCount "70"]
[EventDate "2019.06.02"]
[EventCountry "RUS"]
[SourceTitle "playchess.com"]
[Source "ChessBase"]
[SourceQuality "1"]
[TimeControl "5400+30"]

1. e4 {[%emt 0:00:00]} c5 {[%emt 0:00:00]} 2. Nf3 {[%emt 0:00:00]} d6 {[%emt 0:00:00]} 3. Nc3 {[%emt 0:00:00]} Nf6 {[%emt 0:00:00]} 4. Bc4 {[%emt 0:00:00]} e6 {[%emt 0:00:00]} 5. O-O {[%emt 0:00:00]} Be7 {[%emt 0:00:00]} 6. d3 {[%emt 0:00:00]} O-O {[%emt 0:00:00]} 7. Bg5 {[%emt 0:00:00]} a6 {[%emt 0:00:00]} 8. a4 {[%emt 0:00:00]} b6 {[%emt 0:00:00]} 9. e5 {[%emt 0:00:00]} dxe5 {[%emt 0:00:00]} 10. Nxe5 {[%emt 0:00:00]} Qc7 {[%emt 0:00:00]} 11. Nf3 {[%emt 0:00:00]} Bb7 {[%emt 0:00:00]} 12. Ne2 {[%emt 0:00:00]} Nc6 {[%emt 0:00:00]} 13. Ng3 {[%emt 0:00:00]} h6 {[%emt 0:00:00]} 14. Be3 {[%emt 0:00:00]} Rfd8 {[%emt 0:00:00]} 15. Re1 {[%emt 0:00:00]} Nd5 {[%emt 0:00:00]} 16. Bxd5 {[%emt 0:00:00]} exd5 {[%emt 0:00:00]} 17. Qd2 {[%emt 0:00:00]} Bf6 {[%emt 0:00:00]} 18. Rad1 {[%emt 0:00:00]} Qd7 {[%emt 1:39:00]} 19. Nh5 {[%emt 1:39:30]} Qf5 {[%emt 0:00:30]} 20. Nxf6+ {[%emt 0:00:30]} Qxf6 {[%emt 0:00:30]} 21. b3 {[%emt 0:00:30]} Rac8 {[%emt 0:00:30]} 22. h3 {[%emt 0:00:30]} Ne7 {[%emt 0:00:30]} 23. b4 {[%emt 0:00:30]} d4 {[%emt 0:00:30]} 24. Bf4 {[%emt 0:00:30]} Ng6 {[%emt 0:00:30]} 25. Bg3 {[%emt 0:00:30]} Bxf3 {[%emt 0:00:30]} 26. gxf3 {[%emt 0:00:30]} Qxf3 {[%emt 0:00:30]} 27. bxc5 {[%emt 0:00:30]} Rxc5 {[%emt 0:00:30]} 28. Qe2 {[%emt 0:00:30]} Qc6 {[%emt 0:00:30]} 29. Rc1 {[%emt 0:00:30]} Rg5 {[%emt 0:00:30]} 30. Ra1 {[%emt 0:00:30]} h5 {[%emt 0:00:30]} 31. Kh2 {[%emt 0:00:30]} h4 {[%emt 0:00:30]} 32. Qd2 {[%emt 0:00:30]} Rc5 {[%emt 0:00:30]} 33. Bf4 {[%emt 0:00:30]} Rxc2 {[%emt 0:00:30]} 34. Rec1 {[%emt 0:00:30]} Rxd2 {[%emt 0:00:30]} 35. Rxc6 {[%emt 0:00:30]} Nxf4 {[%emt 0:00:30]} 0-1